bitfinex/quotes_ETHUSD_20251015
["timestamp","ask_amount","ask_price","bid_price","bid_amount"]
[1760554953878,2.49646097,4005.7,4005.3,0.4603]
[1760554954101,2.49662955,4005.4,4005.3,0.4603]
[1760554954280,2.49651771,4005.6,4005.3,0.4603]
[1760554954613,2.49669188,4005.3,4005.2,0.2296]
[1760554954775,2.49663703,4005.4,4005.2,0.2296]
[1760554955103,1.728,4005.7,4005.3,0.4603]
[1760554955301,2.49669188,4005.3,4005.2,0.2296]
[1760554955614,2.4968244,4005.1,4004.9,0.4603]
[1760554955808,2.49692563,4005.0,4004.7,0.2296]
[1760554956021,1.728,4005.6,4004.7,0.6899]
[1760554956022,2.49700359,4004.8,4004.7,0.6899]
[1760554956380,1.728,4005.2,4004.7,0.6899]
[1760554956580,2.49686336,4005.1,4004.7,0.6899]
[1760554956811,1.728,4005.2,4004.7,0.6899]
[1760554957031,2.49698753,4004.9,4004.7,0.6899]
[1760554957198,2.49681655,4005.1,4004.7,0.6899]
[1760554957199,2.49700359,4004.8,4004.7,0.6899]
[1760554957386,2.49694732,4004.9,4004.7,0.6899]
[1760554957585,2.4968921,4005.0,4004.7,0.6899]
[1760554958183,2.496967,4004.9,4004.7,0.6899]
[1760554958390,2.496967,4004.9,4004.7,0.2296]
[1760554958914,2.49689422,4005.0,4004.7,0.6899]
[1760554959413,2.49694153,4004.9,4004.7,0.6899]
[1760554959714,1.728,4005.5,4004.7,0.6899]
[1760554960018,2.49680187,4005.2,4004.7,0.6899]
[1760554960311,1.728,4005.3,4004.7,0.2296]
[1760554960513,2.4969218,4005.0,4004.7,0.2296]
[1760554960689,2.49695727,4004.9,4004.7,0.2296]
[1760554960895,2.49689455,4005.0,4004.7,0.2296]
[1760554961697,2.49683345,4005.1,4004.7,0.2296]
[1760554962011,2.49683345,4005.1,4004.8,0.4603]
[1760554962012,2.49685891,4005.1,4004.8,0.4603]
[1760554962631,1.728,4005.6,4004.8,0.4603]
[1760554962845,1.728,4005.6,4004.7,0.2296]
[1760554962846,0.1248,4004.8,4004.7,0.2296]
[1760554963010,34.22506594,4004.7,4004.6,0.002]
[1760554963196,34.22346594,4004.7,4004.6,0.002]
[1760554963595,4.22506594,4004.7,4004.6,0.002]
[1760554963813,4.22506594,4004.7,4004.2,0.002]
[1760554963814,33.13091538,4004.3,4004.2,0.002]
[1760554964036,34.85891538,4004.3,4004.2,0.002]
[1760554964326,35.35794895,4004.3,4004.2,0.002]
[1760554965021,34.85916487,4003.9,4003.8,0.002]
[1760554965323,45.3628309,4003.9,4003.8,0.002]
[1760554965528,35.15126487,4003.9,4003.8,0.002]
[1760554965729,45.4635309,4003.9,4003.8,0.002]
[1760554966022,45.3628309,4003.9,4003.8,0.002]
[1760554966823,45.4635309,4003.9,4003.8,0.002]
[1760554968324,45.3628309,4003.9,4003.8,0.002]
[1760554968710,45.4635309,4003.9,4003.8,0.002]
[1760554969025,31.728,4003.9,4003.8,0.002]
[1760554969202,10.31226603,4004.5,4003.8,0.002]
[1760554969203,2.49706594,4004.7,4003.8,0.4623]
[1760554969398,1.728,4004.7,4003.8,0.4623]
[1760554969597,1.728,4004.2,4003.8,0.4623]
[1760554969913,30.0,4004.8,4004.1,0.2296]
[1760554970118,10.0,4004.3,4004.1,0.2296]
[1760554970330,2.49730063,4004.4,4004.1,0.2296]
[1760554970829,23.523,4004.3,4004.2,0.4705]
[1760554971057,30.0,4004.8,4004.2,0.4705]
[1760554971333,2.49680126,4005.2,4004.2,0.4705]
[1760554971512,30.0,4005.1,4004.2,0.4705]
[1760554971718,30.0,4005.2,4004.2,0.4705]
[1760554972050,2.49631793,4005.9,4005.1,0.2318]
[1760554972200,1.728,4005.5,4005.1,0.2318]
[1760554972398,2.4965183,4005.6,4005.1,0.2318]
[1760554972648,2.49667671,4005.4,4005.1,0.2318]
[1760554972845,4.22457772,4005.5,4005.1,0.2318]
[1760554973146,14.22450414,4005.7,4005.1,0.2318]
[1760554973347,32.49652313,4005.6,4005.1,0.2318]
[1760554973500,30.0,4005.5,4005.1,0.2318]
[1760554973700,1.728,4005.4,4005.1,0.2318]
[1760554974135,30.0,4005.6,4005.2,0.4705]
[1760554974327,30.0,4005.6,4005.1,0.2318]
[1760554974328,5.26,4006.1,4005.3,0.4705]
[1760554974650,0.39933357,4006.3,4005.3,0.4705]
[1760554974844,14.162,4007.0,4005.3,0.4705]
[1760554975006,0.1248,4005.5,4005.3,0.79040498]
[1760554975205,0.1248,4005.5,4005.4,0.4529]
[1760554975447,0.58983357,4007.1,4005.7,2.49644186]
[1760554975643,0.58983357,4007.1,4005.6,2.49650489]
[1760554975644,0.1248,4005.7,4005.6,2.49650489]
[1760554976107,0.1248,4005.7,4005.6,2.97436993]
[1760554976449,0.1248,4005.7,4005.6,3.55345414]
[1760554976944,0.1248,4006.3,4005.8,2.49637142]
[1760554977131,0.1248,4006.3,4005.9,0.4529]
[1760554977332,0.1248,4006.3,4005.9,2.94917212]
[1760554977564,0.1248,4006.3,4005.6,0.1248]
[1760554977565,0.1248,4006.3,4006.0,2.49621385]
[1760554977742,0.1248,4006.3,4006.1,2.49618912]
[1760554977933,0.1248,4006.3,4006.2,2.49613099]
[1760554978264,0.1248,4006.3,4006.2,3.49355794]
[1760554980430,0.1248,4006.3,4006.2,0.99742695]
[1760554980631,0.1248,4006.3,4006.2,0.4529]
[1760554980838,0.1248,4006.3,4005.9,0.4529]
[1760554981035,0.001,4006.5,4005.9,0.4529]
[1760554981294,1.728,4006.3,4004.1,0.2316]
[1760554981566,1.728,4005.6,4004.1,0.2316]
[1760554981742,1.728,4005.6,4004.1,0.002]
[1760554981743,2.3616,4005.3,4004.1,0.002]
[1760554982066,1.728,4005.1,4004.2,0.2189]
[1760554982250,23.239,4005.3,4004.3,0.4529]
[1760554982573,31.199,4005.6,4004.3,0.4529]
[1760554982755,31.199,4005.6,4004.2,0.2189]
[1760554982756,0.205,4005.2,4004.2,0.2189]
[1760554983136,0.205,4005.2,4004.3,0.4529]
[1760554983333,4.22481655,4005.1,4004.1,0.002]
[1760554983651,21.137,4005.0,4004.1,0.002]
[1760554983852,1.728,4004.7,4004.1,0.002]
[1760554984256,1.728,4004.9,4004.2,0.2189]
[1760554984454,0.205,4005.2,4004.2,0.2189]
[1760554984854,1.8277,4005.7,4004.2,0.2189]
[1760554985055,25.961,4005.4,4004.3,0.4529]
[1760554985264,25.577,4005.4,4004.3,0.4529]
[1760554985442,25.285,4005.4,4004.3,0.4529]
[1760554985846,24.8,4005.4,4004.3,2.95021347]
[1760554986166,24.8,4005.4,4004.3,0.4529]
[1760554986167,24.339,4005.4,4004.3,0.4529]
[1760554986370,1.728,4005.2,4004.3,0.4529]
[1760554986668,1.728,4005.2,4004.3,2.95021236]
[1760554986871,1.728,4005.1,4004.3,2.95021236]
[1760554987072,1.728,4005.2,4004.4,2.4972453]
[1760554987376,0.1007,4005.4,4004.3,2.95019622]
[1760554987885,4.22445174,4005.7,4004.4,2.49723137]
[1760554988048,0.1897,4006.2,4004.6,2.4971283]
[1760554988250,2.68584065,4006.2,4004.8,2.49700359]
[1760554988589,6.437,4006.4,4005.3,2.49665955]
[1760554988753,0.001,4006.5,4005.4,0.6718]
[1760554989344,0.1925,4006.4,4005.4,0.6718]
[1760554989883,1.728,4006.3,4005.1,0.2189]
[1760554990167,1.728,4006.0,4005.1,0.2189]
[1760554990338,4.22423717,4006.1,4005.1,0.2189]
[1760554990536,1.728,4006.1,4005.1,0.2189]
[1760554990740,2.49630219,4006.0,4004.6,2.9500171]
[1760554990967,0.2019,4005.9,4004.7,2.497057]
[1760554991168,0.2019,4005.9,4004.9,2.49688892]
[1760554991339,0.2019,4005.9,4004.7,2.4970131]
[1760554991340,0.1248,4005.1,4004.7,2.4970131]
[1760554991540,0.1248,4005.1,4004.8,0.4529]
[1760554991743,0.1248,4005.1,4004.9,0.4529]
[1760554991944,0.1248,4005.1,4005.0,2.4968789]
[1760554992145,0.1248,4005.1,4005.0,3.19946679]
[1760554992343,0.1248,4005.3,4005.2,2.49673557]
[1760554992542,0.1248,4005.3,4005.1,0.2189]
[1760554993344,0.1248,4005.3,4004.4,0.1248]
[1760554993556,0.1248,4004.5,4004.2,0.6718]
[1760554994278,0.1248,4004.5,4004.4,2.49725302]
[1760554994448,0.1248,4004.5,4004.4,2.97512555]
[1760554994876,0.3019,4005.9,4004.4,2.97512555]
[1760554994877,0.2019,4005.9,4004.4,2.95015302]
[1760554995069,0.2019,4005.9,4004.3,0.31712195]
[1760554995070,0.1248,4005.0,4004.9,2.49694035]
[1760554995371,0.1248,4005.0,4004.9,2.94984035]
[1760554995963,0.1248,4005.0,4004.9,3.49453088]
[1760554996146,0.1248,4005.2,4004.9,3.49453088]
[1760554996346,0.1248,4005.2,4005.1,2.71571655]
[1760554997150,0.1248,4005.2,4005.1,3.16861655]
[1760554997678,0.1248,4005.2,4005.1,0.2189]
[1760554997895,0.1248,4005.2,4005.1,2.71571655]
[1760554998053,0.1248,4005.2,4005.1,3.53994726]
[1760554998253,0.1248,4005.2,4005.1,1.04313071]
[1760554998455,0.1248,4005.2,4005.1,3.16861655]
[1760554998981,0.1248,4005.2,4005.1,0.6718]
[1760554999184,0.1248,4005.2,4005.1,3.16861655]
[1760554999981,0.001,4005.4,4005.1,3.16861655]
[1760554999982,0.001,4005.4,4005.3,2.49669188]
[1760555000187,0.001,4005.4,4005.3,2.52165879]
[1760555000378,0.001,4005.4,4005.3,3.56026632]
[1760555002866,0.001,4005.4,4005.3,3.53529941]
[1760555004191,0.001,4005.4,4005.3,3.68506632]
[1760555004694,0.001,4005.4,4005.3,3.66009941]
[1760555004879,0.001,4005.4,4005.3,4.31866632]
[1760555005194,0.001,4005.4,4005.3,3.66009941]
[1760555005893,0.001,4005.4,4005.3,3.68506632]
[1760555006064,0.001,4005.4,4005.3,3.66009941]
[1760555006982,0.001,4005.4,4005.3,3.07819941]
[1760555007182,0.001,4005.4,4005.3,2.49669188]
[1760555007983,0.001,4005.4,4004.9,2.49690531]
[1760555008187,0.001,4005.4,4004.8,0.1248]
[1760555008419,0.001,4005.4,4005.2,2.49674432]
[1760555008622,0.001,4005.4,4005.3,2.49669188]
[1760555008787,0.001,4005.4,4005.3,3.23284102]
[1760555008989,0.001,4005.4,4005.3,3.71490793]
[1760555009301,0.001,4005.4,4005.3,3.81474102]
[1760555010021,0.001,4005.4,4005.3,2.85829188]
[1760555010310,0.001,4005.4,4005.3,2.49669188]
[1760555011076,0.001,4005.4,4005.2,2.496736]
[1760555011077,0.1258,4005.4,4005.2,2.496736]
[1760555011273,0.1258,4005.4,4004.7,0.1248]
[1760555011586,0.1258,4005.4,4005.2,2.49671335]
[1760555012405,0.1258,4005.4,4005.3,2.49669188]
[1760555012605,0.1258,4005.4,4005.1,2.49680951]
[1760555012805,0.1258,4005.4,4005.2,2.4967418]
[1760555012975,0.1258,4005.4,4005.3,2.49669188]
[1760555013374,0.1258,4005.4,4004.7,0.5819]
[1760555013594,0.1258,4005.4,4005.3,2.49669188]
[1760555014005,0.1258,4005.4,4005.2,2.49674466]
[1760555014374,0.1258,4005.4,4005.0,2.49683917]
[1760555014577,0.1248,4005.1,4005.0,2.49683917]
[1760555015485,0.1248,4005.1,4005.0,2.95393917]
[1760555015683,0.1248,4005.1,4005.0,3.50152844]
[1760555016213,0.1248,4005.1,4005.0,3.04442844]
[1760555016512,0.1248,4005.1,4005.0,2.49683917]
[1760555017077,0.1248,4005.1,4005.0,2.95393917]
[1760555017285,0.1258,4005.4,4005.3,2.49669188]
[1760555017798,0.001,4005.4,4005.3,2.95379188]
[1760555018003,0.001,4005.4,4005.3,3.53500795]
[1760555018205,0.001,4005.4,4005.3,3.55997486]
[1760555018501,0.001,4005.4,4005.3,3.68477486]
[1760555018693,0.001,4005.4,4005.3,4.29340795]
[1760555019689,0.001,4005.4,4005.3,4.16860795]
[1760555022019,0.001,4005.4,4005.3,5.89660795]
[1760555027488,0.001,4005.4,4005.3,8.43160795]
[1760555029721,0.001,4005.4,4005.3,8.55640795]
[1760555030626,1e-08,4006.5,4006.4,3.12960638]
[1760555030831,1e-08,4006.5,4006.4,3.61536702]
[1760555031718,1e-08,4006.5,4006.4,2.98176702]
[1760555031994,1e-08,4006.5,4006.4,2.49600638]
[1760555032488,0.10190001,4006.5,4006.4,2.49600638]
[1760555033094,1e-08,4006.5,4006.4,2.49600638]
[1760555036218,1e-08,4006.5,4006.4,3.12960638]
[1760555036433,1e-08,4006.5,4006.4,3.56760638]
[1760555036611,1e-08,4006.5,4006.4,4.17397552]
[1760555036807,1e-08,4006.5,4006.4,3.73597552]
[1760555037237,1e-08,4006.5,4006.4,4.17397552]
[1760555037736,1e-08,4006.5,4006.4,3.73597552]
[1760555038838,1e-08,4006.5,4006.4,3.10237552]
[1760555039032,1e-08,4006.5,4006.4,2.49600638]
[1760555039650,1e-08,4006.5,4006.4,2.52096644]
[1760555039933,1e-08,4006.5,4006.4,3.12960638]
[1760555040149,1e-08,4006.5,4006.4,2.49600638]
[1760555043069,1e-08,4006.5,4006.4,3.56760638]
[1760555043228,1e-08,4006.5,4006.4,18.63995022]
[1760555048325,0.001,4007.0,4006.9,3.12929492]
[1760555048526,0.001,4007.0,4006.9,7.39029492]
[1760555048729,0.001,4007.0,4006.9,7.95229492]
[1760555048911,0.001,4007.4,4006.9,7.95229492]
[1760555049136,0.001,4007.4,4007.3,15.15084444]
[1760555049337,0.001,4007.4,4007.3,14.92304444]
[1760555049543,0.001,4007.4,4007.3,17.45804444]
[1760555050122,0.001,4007.4,4007.3,7.39204581]
[1760555054664,0.001,4007.4,4007.3,17.89604444]
[1760555054966,0.001,4007.4,4007.3,20.0396866]
[1760555055530,0.001,4007.4,4007.3,19.6016866]
[1760555055932,0.001,4007.4,4007.3,9.53568797]
[1760555057131,0.001,4007.4,4007.3,7.00068797]
[1760555057335,0.001,4007.4,4007.3,2.49544581]
[1760555057541,0.1034,4007.4,4007.3,2.49544581]
[1760555058369,0.001,4007.4,4007.3,2.49544581]
[1760555058573,0.001,4007.4,4007.3,3.12904581]
[1760555059084,0.001,4007.4,4007.3,3.25304581]
[1760555059232,0.001,4007.4,4007.3,4.14788743]
[1760555059432,0.001,4007.4,4007.3,14.92909062]
[1760555059633,0.001,4007.4,4007.3,14.46613617]
[1760555059934,0.1,4007.4,4007.3,3.25304581]
[1760555060141,0.1,4007.4,4007.3,2.61944581]
[1760555060348,0.001,4007.4,4007.3,2.61944581]
[1760555061253,0.1,4007.4,4007.3,2.61944581]
[1760555062269,0.001,4007.4,4007.3,2.61944581]
[1760555062477,0.1,4007.4,4007.3,2.61944581]
[1760555063043,0.001,4007.4,4007.3,2.61944581]
[1760555063367,0.001,4007.4,4007.3,3.76454743]
[1760555064394,0.001,4007.4,4007.3,3.78950188]
[1760555064561,0.001,4007.4,4007.3,4.23560188]
[1760555066195,0.001,4007.4,4007.3,6.74364743]
[1760555067070,0.001,4007.4,4007.3,6.29754743]
[1760555070509,0.001,4007.4,4007.3,3.76454743]
[1760555073085,0.1,4007.4,4007.3,2.61944581]
[1760555074009,0.1,4007.4,4007.3,0.124]
[1760555074169,0.1,4007.4,4007.3,2.61944581]
[1760555074374,0.1,4007.4,4007.3,2.49544581]
[1760555074608,0.1,4007.4,4007.0,2.49562582]
[1760555074816,0.4185,4007.3,4007.2,2.49550808]
[1760555075167,0.4185,4007.3,4006.7,0.124]
[1760555075508,0.124,4007.0,4006.9,2.49569492]
[1760555075803,0.4185,4007.0,4006.9,2.49569492]
[1760555077483,0.4185,4007.0,4006.7,1.728]
[1760555077697,0.2945,4006.9,4006.8,2.49574522]
[1760555078127,0.2945,4006.9,4006.4,0.002]
[1760555079400,30.0,4006.8,4006.4,0.002]
[1760555080122,30.0,4006.6,4006.4,0.002]
[1760555080488,0.1975,4006.5,4006.4,0.002]
[1760555080786,0.2965,4006.5,4006.4,0.002]
[1760555081380,0.2965,4006.5,4006.4,2.49800638]
[1760555081575,0.1975,4006.5,4006.4,0.002]
[1760555081778,0.2965,4006.5,4006.4,0.002]
[1760555088222,0.1975,4006.5,4006.4,0.002]
[1760555088888,0.2965,4006.5,4006.4,0.002]
[1760555093955,35.15404409,4006.5,4006.4,0.002]
[1760555094228,34.85785561,4006.0,4005.9,0.002]
[1760555094415,38.26500492,4006.0,4005.9,0.002]
[1760555094617,38.36400492,4006.0,4005.9,0.002]
[1760555095394,35.86774931,4006.0,4005.9,0.002]
[1760555095600,38.36400492,4006.0,4005.9,0.002]
[1760555096003,38.36400492,4006.0,4005.5,0.002]
[1760555096004,41.67215423,4006.0,4005.5,0.002]
[1760555096209,2.49616954,4006.2,4004.4,0.002]
[1760555096210,0.6336,4005.2,4004.4,0.002]
[1760555096541,8.74409862,4005.6,4003.6,0.002]
[1760555096542,34.22537775,4004.2,4003.6,0.002]
[1760555096835,38.26612706,4004.2,4003.6,0.002]
[1760555097130,38.36682706,4004.2,4003.6,0.002]
[1760555097511,34.95967775,4004.2,4003.6,0.002]
[1760555098222,2.3616,4003.7,4003.6,0.002]
[1760555098427,2.3616,4003.7,4000.6,0.23]
[1760555098428,44.8595392,4003.3,4001.2,0.23]
[1760555098624,34.8595392,4003.3,4001.3,0.02499187]
[1760555098828,34.3265392,4003.3,4002.2,0.23]
[1760555099536,34.3265392,4003.3,4001.5,2.49904063]
[1760555099742,34.3265392,4003.3,4001.7,0.4624]
[1760555099937,4.3265392,4003.3,4002.1,0.23]
[1760555100137,34.3265392,4003.3,4002.1,0.23]
[1760555100919,34.3265392,4003.3,4002.1,0.6924]
[1760555100920,23.5386,4003.3,4002.1,0.6924]
[1760555101112,8.611,4003.3,4002.1,0.6924]
[1760555101313,9.4459392,4003.3,4002.1,0.6924]
[1760555101510,7.0486,4003.3,4002.1,0.6924]
[1760555101821,9.5465392,4003.3,4002.1,0.6924]
[1760555102154,34.3265392,4003.3,4002.1,0.6924]
[1760555103348,34.2259392,4003.3,4002.4,0.4624]
[1760555103720,31.728,4003.3,4002.4,0.4624]
[1760555103918,15.565,4003.3,4002.4,0.4624]
[1760555104123,30.0,4004.7,4003.2,0.4644]
[1760555104352,30.0,4004.7,4003.3,0.02497939]
[1760555104353,17.756,4004.7,4003.3,0.02497939]
[1760555104653,8.166,4005.3,4003.4,0.4624]
[1760555104856,0.1248,4004.0,4003.9,2.49756487]
[1760555105152,0.1248,4004.0,4003.9,0.4624]
[1760555105326,0.1248,4004.0,4003.9,2.95996487]
[1760555105532,0.1248,4004.0,4003.3,0.1248]
[1760555105761,2.49676317,4005.2,4003.4,0.4624]
[1760555105930,31.728,4005.0,4003.4,0.4624]
[1760555106134,1.728,4004.8,4003.4,0.4624]
[1760555106337,1.728,4004.5,4003.2,0.002]
[1760555106665,5.741,4004.4,4003.2,0.48938001]
[1760555106860,1.728,4004.3,4003.2,0.4644]
[1760555107065,2.49738218,4004.2,4003.2,0.4644]
[1760555107261,0.1034,4004.7,4003.2,0.4644]
[1760555107562,15.931,4004.4,4003.3,2.49793881]
[1760555107861,15.888,4004.4,4003.2,2.96239525]
[1760555108026,5.888,4004.4,4003.3,0.4624]
[1760555108226,5.888,4004.4,4003.5,2.49779457]
[1760555108442,5.888,4004.4,4003.3,2.96031917]
[1760555108663,1.728,4004.3,4003.8,2.49762364]
[1760555108844,1.728,4004.7,4003.9,0.4624]
[1760555109050,1.9951,4004.9,4003.9,2.95995862]
[1760555109252,1.728,4004.7,4004.0,0.02497502]
[1760555109471,1.728,4005.1,4004.1,2.72739313]
[1760555109628,14.757,4005.0,4004.2,2.49737728]
[1760555109833,30.0,4005.2,4004.2,2.49737728]
[1760555110036,0.1034,4005.3,4004.3,2.49729399]
[1760555110235,1.728,4005.1,4004.3,2.49729399]
[1760555110455,2.415,4005.1,4004.2,2.95976152]
[1760555110648,2.415,4005.1,4004.2,0.4624]
[1760555110864,1.728,4005.2,4004.2,0.4624]
[1760555111049,10.0,4005.0,4004.2,0.4624]
[1760555111366,1.728,4005.0,4004.2,0.4624]
[1760555111562,1.728,4004.9,4004.2,2.95977705]
[1760555111764,0.1034,4005.3,4004.2,2.95977647]
[1760555112149,11.728,4005.5,4004.4,2.49723002]
[1760555112355,1.728,4005.5,4004.4,2.49723002]
[1760555112556,2.49658329,4005.5,4004.3,2.49730462]
[1760555112728,1.728,4005.3,4004.3,2.49730462]
[1760555112934,1.728,4005.3,4004.2,2.95976547]
[1760555113163,1.728,4005.1,4004.2,0.4624]
[1760555113364,1.728,4005.0,4004.1,0.23]
[1760555113663,4.22488578,4005.0,4004.1,0.23]
[1760555113869,0.1625,4004.9,4004.1,0.23]
[1760555114280,1.8905,4004.9,4004.1,0.23]
[1760555114633,0.1625,4004.9,4004.1,2.72743984]
[1760555114845,0.1625,4004.9,4004.1,0.23]
[1760555115241,2.49725349,4004.4,4003.3,0.4624]
[1760555115442,0.1046,4004.4,4003.3,2.96033685]
[1760555115770,0.1046,4004.4,4003.4,2.49781557]
[1760555116485,0.1248,4003.4,4003.3,0.4644]
[1760555116766,0.1248,4003.4,4003.3,2.9623392]
[1760555117569,0.1248,4003.4,4003.3,0.002]
[1760555118466,0.1248,4003.4,4003.3,2.4999392]
[1760555118668,1.096,4005.0,4003.3,2.4999392]
[1760555118669,0.1248,4003.5,4003.3,0.002]
[1760555119533,0.1248,4003.5,4003.3,2.49993903]
[1760555119967,0.1248,4003.5,4003.4,2.4978768]
[1760555120139,0.1248,4003.5,4003.3,0.002]
[1760555121340,0.1248,4003.5,4003.4,2.4978768]
[1760555121539,0.1248,4003.5,4003.3,3.14802202]
[1760555121751,0.1248,4003.5,4003.3,2.70102202]
[1760555122081,0.1248,4003.5,4003.3,0.002]
[1760555123065,0.1248,4003.5,4003.3,2.49992816]
[1760555123479,0.1248,4003.5,4003.4,2.4978768]
[1760555123644,0.1248,4003.5,4003.4,0.6481]
[1760555123847,0.1248,4003.5,4003.4,3.14597418]
[1760555124572,0.1248,4003.5,4003.4,3.73574574]
[1760555124770,0.3121,4005.2,4003.5,2.49781441]
[1760555124943,0.1248,4004.0,4003.9,2.49756487]
[1760555125151,0.1248,4004.0,4003.9,2.94456487]
[1760555127382,0.1248,4004.0,4003.4,0.2011]
[1760555127557,0.1248,4003.6,4003.4,0.2011]
[1760555127787,0.1248,4003.6,4003.3,0.002]
[1760555127986,0.4519,4003.6,4003.3,0.002]
[1760555128187,30.0,4003.5,4003.3,0.002]
[1760555128395,0.4519,4003.5,4003.3,0.002]
[1760555128695,2.58673968,4003.8,4003.3,0.002]
[1760555128696,1.8171,4003.8,4003.3,0.002]
[1760555129006,0.4519,4003.4,4003.3,0.002]
[1760555130010,2.269,4003.8,4003.3,0.002]
[1760555130196,10.0,4003.6,4003.3,0.002]
[1760555130512,1.728,4003.5,4003.3,0.002]
[1760555130696,2.1799,4003.5,4003.3,0.002]
[1760555130901,0.4519,4003.4,4003.3,0.002]
[1760555131410,30.4519,4003.4,4003.3,0.002]
[1760555131575,32.1799,4003.4,4003.3,0.002]
[1760555132506,34.6777768,4003.4,4003.3,0.002]
[1760555133590,32.1799,4003.4,4003.3,0.002]
[1760555133794,15.389,4003.4,4003.3,0.002]
[1760555133985,1.728,4003.4,4003.3,0.002]
[1760555135910,0.001,4003.5,4003.3,0.002]
[1760555137611,0.001,4003.5,4003.4,0.447]
[1760555137785,0.001,4003.5,4003.3,0.002]
[1760555139485,0.001,4003.5,4003.3,2.49992111]
[1760555139706,0.001,4003.5,4003.3,0.449]
[1760555140107,0.001,4003.5,4003.3,0.002]
[1760555146124,0.3116,4003.5,4003.3,0.002]
[1760555146318,2.0396,4003.5,4003.3,0.002]
[1760555146617,0.3106,4003.4,4003.3,0.002]
[1760555147717,0.001,4003.5,4003.3,0.002]
[1760555148110,0.001,4003.5,4003.4,0.447]
[1760555148819,0.001,4003.5,4003.3,0.002]
[1760555148990,0.1248,4003.4,4003.3,0.002]
[1760555149322,0.1248,4003.4,4003.3,0.449]
[1760555149915,0.001,4003.5,4003.4,2.4978768]
[1760555150428,0.001,4003.5,4003.4,2.9448768]
[1760555150722,0.001,4003.5,4003.4,2.4978768]
[1760555150923,0.001,4003.5,4003.4,2.9396768]
[1760555151222,0.001,4003.5,4003.4,2.96465556]
[1760555151425,0.001,4003.5,4003.4,2.9396768]
[1760555151628,0.001,4003.5,4003.4,3.5074111]
[1760555155702,0.001,4003.5,4003.4,3.5018111]
[1760555157324,0.001,4003.5,4003.4,2.4978768]
[1760555159542,0.001,4003.5,4003.3,0.002]
[1760555159713,0.001,4003.5,4003.4,2.4978768]
[1760555160527,0.1248,4003.4,4003.3,2.49988832]
[1760555160725,0.1248,4003.4,4003.3,0.002]
[1760555160930,0.4178,4003.4,4003.3,0.002]
[1760555162006,0.1248,4003.4,4003.3,0.002]
[1760555162211,0.1248,4003.4,4003.3,2.4999392]
[1760555163311,0.001,4003.5,4003.4,2.4978768]
[1760555163530,0.001,4003.5,4003.4,2.52285556]
[1760555163736,0.001,4003.5,4003.4,3.23258549]
[1760555164221,0.001,4003.5,4003.4,3.20760673]
[1760555164425,0.001,4003.5,4003.4,2.4978768]
[1760555165740,0.001,4003.5,4003.3,0.002]
[1760555165741,0.001,4003.5,4003.3,2.49992237]
[1760555165941,0.001,4003.5,4003.4,2.4978768]
[1760555166312,0.294,4003.5,4003.3,0.002]
[1760555166518,0.293,4003.4,4003.3,0.002]
[1760555167445,34.5188768,4003.4,4003.3,0.002]
[1760555169341,35.1524768,4003.4,4003.3,0.002]
[1760555170627,35.46897703,4003.4,4003.3,0.002]
[1760555171449,5.46897703,4003.4,4003.3,0.002]
[1760555171747,35.46897703,4003.4,4003.3,0.002]
[1760555175634,33.74097703,4003.4,4003.3,0.002]
[1760555176585,35.46897703,4003.4,4003.3,0.002]
[1760555177321,2.4979392,4003.3,4003.2,1e-08]
[1760555177522,45.17603943,4003.3,4003.2,1e-08]
[1760555177752,35.77113912,4003.3,4003.2,1e-08]
[1760555178362,35.13753912,4003.3,4003.2,1e-08]
[1760555178529,35.77113912,4003.3,4003.2,1e-08]
[1760555178729,33.13203847,4002.5,4002.4,1e-08]
[1760555178946,45.25351817,4002.5,4002.4,1e-08]
[1760555179175,45.54561817,4002.5,4002.4,1e-08]
[1760555180635,15.54561817,4002.5,4002.4,1e-08]
[1760555180835,45.54561817,4002.5,4002.4,1e-08]
[1760555181449,45.83177956,4002.5,4002.4,1e-08]
[1760555181866,33.13203847,4002.5,4002.4,1e-08]
[1760555182247,33.42313847,4002.5,4002.4,1e-08]
[1760555182453,35.15113847,4002.5,4002.4,1e-08]
[1760555182654,35.4676387,4002.5,4002.4,1e-08]
[1760555183744,35.1765387,4002.5,4002.4,1e-08]
[1760555184289,34.86003847,4002.5,4002.4,1e-08]
[1760555184943,34.86103847,4002.5,4002.4,1e-08]
[1760555185246,4.86103847,4002.5,4002.4,1e-08]
[1760555185437,34.86103847,4002.5,4002.4,1e-08]
[1760555185973,35.4686387,4002.5,4002.4,1e-08]
[1760555186974,35.1775387,4002.5,4002.4,1e-08]
[1760555187751,35.4686387,4002.5,4002.4,1e-08]
[1760555187965,35.1775387,4002.5,4002.4,1e-08]
[1760555189791,35.4686387,4002.5,4002.4,1e-08]
[1760555190483,5.4686387,4002.5,4002.4,1e-08]
[1760555190691,35.4686387,4002.5,4002.4,1e-08]
[1760555191811,35.1775387,4002.5,4002.4,1e-08]
[1760555192372,5.1775387,4002.5,4002.4,1e-08]
[1760555192581,35.1775387,4002.5,4002.4,1e-08]
[1760555193415,35.4686387,4002.5,4002.4,1e-08]
[1760555193914,35.1775387,4002.5,4002.4,1e-08]
[1760555195810,34.22743847,4002.5,4002.4,1e-08]
[1760555196628,4.22743847,4002.5,4002.4,1e-08]
[1760555196920,34.22743847,4002.5,4002.4,1e-08]
[1760555197624,4.22743847,4002.5,4002.4,1e-08]
[1760555197824,34.22743847,4002.5,4002.4,0.42880001]
[1760555198034,23.93443847,4002.5,4002.4,0.42880001]